Cogmind - Beta 14 @@@ ROGUE MODE // 2024.08.12 @ 01:59:18 Player: Hiredgoonthug Result: Destroyed by G-47 Trooper with Particle Gun Performance ------------- Evolutions (2) 1000 Regions Visited (5) 1000 Robots Destroyed (50) 250 Value Destroyed (1120) 1120 Prototype IDs (23) 460 Alien Tech Used (0) 0 Bonus (166) 166 TOTAL SCORE: 3996 Bonus ------- High Alert Combat Kills 16 Aligned with FarCom 300 Friendly Fire -150 Cogmind --------- Core Integrity 0/550 Matter 284/300 Energy 125/125 System Corruption 0% Temperature Cool (9) Movement Rolling (115) Ox1 Location -8/Materials Parts ------- > --- POWER (1) -------- Light Ion Engine > --- PROPULSION (4) --- Light Treads Aluminum Leg Compact Wheel Compact Wheel > --- UTILITY (4) ------ Large Storage Unit Advanced Targeting Computer Light Armor Plating Hacking Suite > --- WEAPON (2) ------- Shotgun Gauss Rifle > --- INVENTORY (15) --- Huge Storage Unit Large Matter Pod (150) Small Laser YOLO Cannon Grenade Launcher Peak State ------------ > --- POWER ------------ (None) > --- PROPULSION ------- Carbon-fiber Leg > --- UTILITY ---------- Large Storage Unit Hacking Suite > --- WEAPON ----------- YOLO Cannon > --- INVENTORY -------- Huge Storage Unit Large Matter Pod Small Laser Light Assault Rifle Gauss Rifle Grenade Launcher [Rating: 27] Favorites ----------- Power Ion Engine Engine Ion Engine Power Core Light Nuclear Core Propulsion Aluminum Leg Treads Light Treads Leg Aluminum Leg Wheel Compact Wheel Utility Large Storage Unit Device Sensor Array Storage Large Storage Unit Processor Advanced Targeting Computer Hackware Hacking Suite Protection Light Armor Plating Weapon Assault Rifle Energy Cannon YOLO Cannon Ballistic Gun Assault Rifle Launcher Grenade Launcher Build | -11 -10 -10 -10 -9 -8 ------- Run | Yrd Mat Min Exi Min Mat Slots Evolved 4 | . . . . . 4 Power . | . . . . . . Propulsion 2 | . . . . . 2 Utility 2 | . . . . . 2 Weapon . | . . . . . . Parts Attached 50 | 6 9 1 1 14 19 Power 4 | 1 2 . . . 1 Engine 3 | 1 1 . . . 1 Core 1 | . 1 . . . . Reactor . | . . . . . . Propulsion 14 | 2 . . . 5 7 Treads 1 | . . . . . 1 Leg 11 | 2 . . . 5 4 Wheel 2 | . . . . . 2 Hover . | . . . . . . Flight . | . . . . . . Utility 7 | 1 2 . . . 4 Device 2 | . 1 . . . 1 Storage 2 | 1 1 . . . . Processor 1 | . . . . . 1 Hackware 1 | . . . . . 1 Protection 1 | . . . . . 1 Artifact . | . . . . . . Weapon 25 | 2 5 1 1 9 7 Energy Gun . | . . . . . . Energy Cannon 3 | . . . 1 1 1 Ballistic Gun 17 | 2 3 . . 6 6 Ballistic Cannon . | . . . . . . Launcher 5 | . 2 1 . 2 . Special Weapon . | . . . . . . Impact Weapon . | . . . . . . Slashing Weapon . | . . . . . . Piercing Weapon . | . . . . . . Special Melee Weapon . | . . . . . . Unidentified Prototypes . | . . . . . . Parts Lost 16 | . 1 . . 4 11 Power 2 | . 1 . . . 1 Propulsion 7 | . . . . 3 4 Utility 2 | . . . . . 2 Weapon 5 | . . . . 1 4 Highest Loss Streak 9 | . 1 . . 3 9 To Critical Strikes . | . . . . . . Average Slot Usage (%) 77 | . 94 100 71 97 58 Engine 8 | . 10 14 14 14 3 Leg 20 | . 28 28 28 26 10 Wheel 1 | . . . . . 3 Device 8 | . 8 14 14 14 2 Storage 11 | . 14 14 14 14 9 Hackware 3 | . . . . . 8 Ballistic Gun 14 | . 27 . . 17 16 Launcher 4 | . . 28 . 8 . Peak Build Rating 27 | 6 8 7 26 26 27 Average Rating 10 | 4 7 7 7 10 13 On Entrance 9 | . 6 7 7 26 9 Naked Turns . | . . . . . . Heaviest Build 44 | 13 31 32 44 44 33 Greatest Support 45 | 20 20 20 20 26 45 Greatest Overweight (x) 8 | 1 1 1 2 2 8 Average Overweight (x) 1 | . . 1 1 1 2 Largest Inventory Capacity 15 | 8 15 15 15 15 15 Average Capacity 14 | 7 11 15 15 15 15 Most Carried 13 | 4 9 9 13 13 9 Average Carried 8 | 2 8 9 11 10 6 Final Capacity 15 | 8 15 15 15 15 15 Final Carried 11 | 4 9 9 11 10 6 Class Distribution -------------------- 70% | Mutant 14% | Skirmisher 8% | Scavenger-Mutant 6% | Scavenger-Skirmisher Dominant Class ---------------- Mutant | -10/Materials Mutant | -10/Mines Mutant | -10/Exiles Skirmisher | -9/Mines Mutant | -8/Materials Resources | -11 -10 -10 -10 -9 -8 ----------- Run | Yrd Mat Min Exi Min Mat Matter Collected 1518 | 221 288 120 . 231 658 Remotely . | . . . . . . Salvage Created 1304 | . 414 16 . 238 636 Parts 98 | . 32 7 . 26 33 Haulers Intercepted 2 | . 2 . . . . Recyclers Shooed 2 | . . . . 1 1 Parts Field Recycled . | . . . . . . Retrieved Matter . | . . . . . . Parts Self-Destructed . | . . . . . . Prevented . | . . . . . . Kills | -11 -10 -10 -10 -9 -8 ------- Run | Yrd Mat Min Exi Min Mat Combat Hostiles Destroyed 42 | . 10 3 . 15 14 Guns 25 | . 10 . . 2 13 Cannons 2 | . . . . 2 . AOE 15 | . . 3 . 11 1 Classes Destroyed 9 | . 4 . . 2 3 Worker 3 | . . . . 2 1 Hauler 2 | . 2 . . . . Recycler 2 | . . . . . 2 Watcher 1 | . 1 . . . . Swarmer 23 | . 6 3 . 7 7 Grunt 16 | . 4 . . 7 5 Duelist 1 | . . . . 1 . Sentry 1 | . . . . . 1 Hunter 1 | . . . . . 1 Best Kill Streak 5 | . 5 3 . 5 3 Combat Bots Only 5 | . 5 3 . 4 3 Max Kills in Single Turn 3 | . 1 3 . 3 2 Gunslinging 1 | . . . . . 1 Exploded 3 | . . 3 . 3 1 Melee . | . . . . . . Uniques/NPCs Destroyed . | . . . . . . Combat | -11 -10 -10 -10 -9 -8 -------- Run | Yrd Mat Min Exi Min Mat Hostile Shots Fired 242 | . 44 6 . 29 163 Missed 59 | . 8 1 . 6 44 Damage Taken 2509 | . 326 74 . 446 1663 Core 728 | . 85 20 . 73 550 Absorbed by Shields . | . . . . . . Core Remaining (%) 64 | 100 . . . 28 . Volleys Fired 136 | . 34 1 . 25 76 Largest 2 | . 2 2 . 2 2 Hottest 100 | . 40 60 . 100 100 Shots Fired 219 | . 64 2 . 34 119 Gun 189 | . 61 . . 11 117 Cannon 8 | . . . . 6 2 Launcher 22 | . 3 2 . 17 . Special . | . . . . . . Kinetic 189 | . 61 . . 11 117 Thermal 8 | . . . . 6 2 Explosive 22 | . 3 2 . 17 . Electromagnetic . | . . . . . . Robot Hit Streak 10 | . 9 . . 4 10 Robot Miss Streak 9 | . 2 1 . 2 9 Penetration Max . | . . . . . . Secondary Targets 3 | . 2 . . . 1 Max Gunslinging Chain 1 | . 1 . . . 1 Shots Hit Robots 129 | . 41 . . 12 76 Core Hits 87 | . 20 3 . 29 35 Critical Kills . | . . . . . . Critical Parts Destroyed . | . . . . . . Critical Strikes . | . . . . . . Melee Attacks . | . . . . . . Impact . | . . . . . . Slashing . | . . . . . . Piercing . | . . . . . . Sneak Attacks . | . . . . . . Combat Hostiles . | . . . . . . Follow-up Attacks . | . . . . . . Damage Inflicted 3350 | . 454 127 . 1377 1392 Guns 1700 | . 454 . . 99 1147 Cannons 261 | . . . . 261 . Explosions 1389 | . . 127 . 1017 245 Melee . | . . . . . . Ramming . | . . . . . . Kinetic 1700 | . 454 . . 99 1147 Thermal 827 | . . . . 582 245 Explosive 823 | . . 127 . 696 . Electromagnetic . | . . . . . . Impact . | . . . . . . Slashing . | . . . . . . Piercing . | . . . . . . Highest Corruption 1 | . 1 1 1 1 . Average Corruption 1 | . 1 1 1 1 . Corruption Purged . | . . . . . . Corruption Blocked . | . . . . . . Effects 17 | . 5 6 3 3 . Message Errors 6 | . 2 3 1 . . Matter Fused 4 | . 1 1 1 1 . Energy Discharges 3 | . . 1 1 1 . Data Loss (minor) 2 | . 1 1 . . . Alerts 1 | . . . . 1 . Weapon Failures 1 | . 1 . . . . Overload Shots . | . . . . . . Overflow Damage 118 | . . . . 104 14 Projectiles . | . . . . . . Explosions 118 | . . . . 104 14 Melee . | . . . . . . Knockbacks . | . . . . . . Impact . | . . . . . . Kinetic . | . . . . . . Secondary . | . . . . . . Self-Inflicted Damage 217 | . . 37 . 180 . Shots 7 | . . 2 . 5 . Rammed . | . . . . . . Targets Rammed . | . . . . . . Kicked . | . . . . . . Crushed . | . . . . . . Highest Temperature 104 | . 10 . . 104 16 Average Temperature 25 | . 4 . . 48 6 Received Heat Transfer 852 | . 66 . . 111 675 Siege Activations . | . . . . . . Robots Corrupted . | . . . . . . Combat Hostiles . | . . . . . . Parts Fried . | . . . . . . Impact Corruptions . | . . . . . . Robots Melted . | . . . . . . Combat Hostiles . | . . . . . . Parts Melted . | . . . . . . Heat Transferred 880 | . . . . 560 320 Parts Sabotaged . | . . . . . . Parts Stolen . | . . . . . . Parts Stripped . | . . . . . . Power Chain Reactions . | . . . . . . Alert | -11 -10 -10 -10 -9 -8 ------- Run | Yrd Mat Min Exi Min Mat Peak Influence 505 | . 324 105 . 505 228 Initial 118 | . . 7 . . 118 Average 108 | . 151 74 . 268 47 Maximum Alert Level 2 | . 1 . . 2 1 Low Security (%) 81 | 100 72 100 . 35 95 Level 1 17 | . 27 . . 59 4 Level 2 . | . . . . 4 . Level 3 . | . . . . . . Level 4 . | . . . . . . Level 5 . | . . . . . . High Security . | . . . . . . Max Security . | . . . . . . Squads Dispatched 4 | . 1 . . . 3 Investigation 1 | . . . . . 1 Extermination . | . . . . . . Reinforcement 3 | . 1 . . . 2 Assault . | . . . . . . Garrison . | . . . . . . Intercept . | . . . . . . Searches Triggered . | . . . . . . Construction Impeded . | . . . . . . Haulers Reinforced . | . . . . . . Active Scanning Responses . | . . . . . . Cargo Convoy Interrupts . | . . . . . . Stealth | -11 -10 -10 -10 -9 -8 --------- Run | Yrd Mat Min Exi Min Mat Distress Signals 5 | . 4 . . . 1 Communications Jammed . | . . . . . . Distress Signals . | . . . . . . Times Spotted 59 | . 18 3 . 13 25 Peak Tracking Total 4 | . 4 3 . 3 4 Tactical Retreats 3 | . 2 . . . 1 Traps | -11 -10 -10 -10 -9 -8 ------- Run | Yrd Mat Min Exi Min Mat Traps Triggered 2 | . 1 . . . 1 Indirectly . | . . . . . . Trap Hack Attempts . | . . . . . . Triggered . | . . . . . . Disarmed . | . . . . . . Reprogrammed . | . . . . . . Reused . | . . . . . . Traps Extracted . | . . . . . . Installed . | . . . . . . Triggered . | . . . . . . Machines | -11 -10 -10 -10 -9 -8 ---------- Run | Yrd Mat Min Exi Min Mat Machines Disabled 7 | . . . . 6 1 Max in Single Turn 4 | . . . . 4 1 Machines Repaired . | . . . . . . Machines Dismantled . | . . . . . . Machines Sabotaged . | . . . . . . Overloaded Fab Kills . | . . . . . . Hacking | -11 -10 -10 -10 -9 -8 --------- Run | Yrd Mat Min Exi Min Mat Machines Accessed 9 | . 4 . 1 1 3 Terminals 8 | . 4 . . 1 3 Fabricators . | . . . . . . Repair Stations . | . . . . . . Recycling Units . | . . . . . . Scanalyzers . | . . . . . . Garrison Access . | . . . . . . Total Hacks 26 | . 13 . 1 2 10 Successful 11 | . 3 . 1 2 5 Failed 15 | . 10 . . . 5 Catastrophic 3 | . 2 . . . 1 Database Lockouts . | . . . . . . Manual 23 | . 13 . 1 . 9 Terminals 25 | . 13 . . 2 10 Fabricators . | . . . . . . Repair Stations . | . . . . . . Recycling Units . | . . . . . . Scanalyzers . | . . . . . . Garrison Access . | . . . . . . Terminal Hacks 6 | . 1 . 1 2 2 Record 2 | . . . . 2 . Branch Access Points 2 | . 1 . . . 1 Maintenance Status 1 | . . . . . 1 Derelict Proto ID Bank 1 | . . . 1 . . Fabricator Hacks . | . . . . . . Repair Station Hacks . | . . . . . . Recycling Unit Hacks . | . . . . . . Scanalyzer . | . . . . . . Garrison Access Hacks . | . . . . . . Unauthorized Hacks 5 | . 2 . . . 3 Terminals 5 | . 2 . . . 3 Botnet 5 | . 2 . . . 3 Fabricators . | . . . . . . Repair Stations . | . . . . . . Recycling Units . | . . . . . . Scanalyzers . | . . . . . . Garrison Access . | . . . . . . Data Cores Recovered . | . . . . . . Used . | . . . . . . Hacking Detections 7 | . 3 . . 1 3 Full Trace Events 2 | . 1 . . . 1 Feedback Events . | . . . . . . Feedback Blocked . | . . . . . . Robot Schematics Acquired . | . . . . . . Robots Built . | . . . . . . Authchips . | . . . . . . Time . | . . . . . . Total Robot Build Rating . | . . . . . . Part Schematics Acquired . | . . . . . . Parts Built . | . . . . . . Authchips . | . . . . . . Time . | . . . . . . Total Part Build Rating . | . . . . . . Parts Repaired . | . . . . . . Time . | . . . . . . Parts Recycled . | . . . . . . Recycled Matter . | . . . . . . Retrieved Matter . | . . . . . . Retrieved Components . | . . . . . . Parts Scanalyzed . | . . . . . . Part Schematics Acquired . | . . . . . . Parts Damaged . | . . . . . . Bothacking | -11 -10 -10 -10 -9 -8 ------------ Run | Yrd Mat Min Exi Min Mat Used RIF Installer . | . . . . . . Robots Hacked . | . . . . . . Non-combat . | . . . . . . Combat . | . . . . . . Robot Hacks Applied . | . . . . . . Relay Couplers Released . | . . . . . . Fabnet Peak Effective % . | . . . . . . Robots Rewired . | . . . . . . Allies Hacked . | . . . . . . Hacks Repelled . | . . . . . . Allies | -11 -10 -10 -10 -9 -8 -------- Run | Yrd Mat Min Exi Min Mat Total Allies 3 | . . 2 . 1 . Largest Group 2 | . . 2 2 1 . Highest-Rated Group 38 | . . 38 38 31 . Highest-Rated Ally 31 | . . 31 31 31 . Total Orders . | . . . . . . Ally Attacks 8 | . . . . 8 . Total Damage 62 | . . . . 62 . Kills . | . . . . . . Allies Corrupted . | . . . . . . Allies Melted . | . . . . . . Intel | -11 -10 -10 -10 -9 -8 ------- Run | Yrd Mat Min Exi Min Mat Robot Analysis Total . | . . . . . . Derelict Logs Recovered 2 | . . 1 . 1 . Drone Launches . | . . . . . . Drone Recoveries . | . . . . . . Exploration | -11 -10 -10 -10 -9 -8 ------------- Run | Yrd Mat Min Exi Min Mat Turns Passed 4619 | 70 858 557 478 682 1974 Spaces Moved 1726 | 50 456 271 248 300 401 Core 69 | 6 . . . . 63 Treads 2 | . . . . . 2 Legs 1566 | 44 456 271 248 300 247 Wheels 89 | . . . . . 89 Hover . | . . . . . . Flight . | . . . . . . Fastest Speed 50 | 50 120 190 190 190 100 Average Speed 185 | 115 152 190 192 193 217 Slowest Speed 450 | 120 190 190 260 260 450 Overloaded Moves . | . . . . . . Propulsion Burnouts . | . . . . . . Robots Hopped . | . . . . . . Cave-ins Triggered . | . . . . . . Exploration Rate (%) 53 | 3 76 72 68 68 31 Regions Visited 5 Branch Regions 3 Pre-discovered Areas 2 | . . . . 2 . Known Exits Taken 1 | . 1 . . . . Unknown Exits Taken 4 | 1 . 1 1 1 . Scrap Searched 4 | . . 2 . 2 . Spaces Dug 32 | . 10 . . 22 . Terrain Destroyed 239 | . 29 20 . 177 13 Melee . | . . . . . . Projectile 4 | . . . . 2 2 AOE 235 | . 29 20 . 175 11 Terrain Rammed . | . . . . . . Walls Destroyed . | . . . . . . Machines Disabled . | . . . . . . Actions | -11 -10 -10 -10 -9 -8 --------- Run | Yrd Mat Min Exi Min Mat Total 2917 | 59 558 311 251 359 1379 Wait 976 | . 45 39 . 11 881 Move 1721 | 49 455 270 247 299 401 Hop . | . . . . . . Pick Up 18 | 4 9 . 1 3 1 Fast Attach 17 | 6 1 . . . 10 Attach 21 | . 1 . 1 12 7 Detach 10 | . . . 2 7 1 Swap 12 | . 7 1 . 2 2 Drop 6 | . 6 . . . . Fire 136 | . 34 1 . 25 76 Melee . | . . . . . . Ram . | . . . . . . Kick . | . . . . . . Crush . | . . . . . . Escape Stasis . | . . . . . . Rewire . | . . . . . . Trap . | . . . . . . Miscellaneous . | . . . . . . Route ------- -11/Scrapyard -10/Materials (discovered 4 exits: [*Mat x3] / *Min) -10/Mines (discovered 3 exits: [*Mat x2] / *Exi) -10/Exiles -9/Mines -8/Materials (discovered 2 exits: *Fac x2) History --------- Turn | Location | Event 10 | -11/Scrapyard | Discovered new exit (range 15) 71 | -11/Scrapyard | Entered Materials 301 | -10/Materials | Build established: Mutant 453 | -10/Materials | Discovered new exit (range 4) 592 | -10/Materials | Identified exit to Mines 647 | -10/Materials | Discovered new exit (range 3) 810 | -10/Materials | Discovered new exit (range 10) 929 | -10/Materials | Entered Mines 952 | -10/Mines | Discovered new exit (range 5) 965 | -10/Mines | Met a Derelict bent on vengeance 1387 | -10/Mines | Discovered new exit (range 11) 1389 | -10/Mines | Learned location of 2 exits from Materials 1476 | -10/Mines | Deemed a non-threat by the Exiles lab entrance 1478 | -10/Mines | Discovered new exit (range 5) 1486 | -10/Mines | Entered Exiles 1486 | -10/Exiles | Accompanied by 2 allies 1516 | -10/Exiles | Led the pair of lost Derelicts to a safe place 1535 | -10/Exiles | Met 8R-AWN 1565 | -10/Exiles | Met EX-HEX 1622 | -10/Exiles | Met EX-BIN 1649 | -10/Exiles | Aligned with FarCom system 1651 | -10/Exiles | Given EX-Vault access code 1695 | -10/Exiles | Opened EX-Vault 1704 | -10/Exiles | Found YOLO Cannon 1745 | -10/Exiles | Warned to stay clear of 0b10 Research branches 1792 | -10/Exiles | Met EX-DEC 1933 | -10/Exiles | Discovered new exit (range 10) 1964 | -10/Exiles | Left Exiles lab with YOLO Cannon 1964 | -10/Exiles | Entered Mines 2134 | -9/Mines | Escorted by a lone wolf Derelict 2154 | -9/Mines | Learned location of Storage (-7) 2204 | -9/Mines | Core integrity fell below 50% 2267 | -9/Mines | Build established: Skirmisher 2406 | -9/Mines | Lost 3 parts (2n1w) 2629 | -9/Mines | Discovered new exit (range 5) 2646 | -9/Mines | Entered Materials 2646 | -8/Materials | Evolved 4 slots: Propulsion x2, Utility x2 2647 | -8/Materials | Identified exit to Factory 2954 | -8/Materials | Build established: Scavenger-Skirmisher 3009 | -8/Materials | Core integrity fell below 50% 3031 | -8/Materials | Lost 9 parts (1p4n2u2w) 3260 | -8/Materials | Build established: Mutant 4177 | -8/Materials | Core integrity fell below 20% 4529 | -8/Materials | Build established: Scavenger-Mutant 4620 | -8/Materials | Destroyed by G-47 Trooper with Particle Gun Last Messages --------------- 04534_ S-10 Pest destroyed. 04537_ Slug penetrates Wall. 04540_ S-10 Pest destroyed. 04546_ Acquired 8 matter. 04546_ K-01 Serf collects debris. 04553_ Acquired Adv. Targeting Computer. 04553_ R-06 Scavenger collects Lgt. Assault Rifle. 04554_ K-01 Serf collects debris. 04556_ R-06 Scavenger collects Lgt. Assault Rifle. 04560_ R-06 Scavenger collects Flight Unit. 04562_ K-01 Serf collects debris. 04565_ R-06 Scavenger collects Lgt. Ion Engine. 04572_ R-06 Scavenger collects Flight Unit. 04576_ K-01 Serf destroyed. 04576_ K-01 Serf collects debris. 04578_ Slug penetrates S-10 Pest. 04578_ S-10 Pest destroyed. 04578_ K-01 Serf collects debris. 04608_ Acquired 62 matter. 04615_ Slug penetrates Wall. Map ----- +----------------------------------------------------+ | ????## """" !! #?????????# /// # """ #??????? | | ????# %"""" #?????????# !# #??????? | | ????## #?????????# ########??????? | | ?????# #?????????# # T #??????? | | ?????# #?????????+ ! + #??????? | | ##########+#######???????#### #### """ #??????? | | #??????????# #??# """ #??????? | | #??????????# #??# """ ]#??????? | | #??????????# #??# #??????? | | ####### #??????????# #####+############ | | """ # = #???# + + # | | """"" # !!! #??????????# ##### # # | | """"" + !!! ############+##??# # # | | """" %# !!! # #### # # | | """ # # + + # | | # ! # #### # # | | # ########### + #??# # # | | # #?????????# # ! #??# # # | | / # #?????????# # #??# # # | | ####### #?????????# ########??# ########## | | ??????#[==#??######## # #??# # # | | ??????#%!%#??# # # #??# # # | | ?????? *=#??#" """ # # #??# # # | | ??????##"##??#T """ + + #??# + # | | ???????" ???#" """ # # #??# # # | | ???????" ???# """ # #@ % !#??# ## # | | ??????? ???# # ##g#####??# # ? # | | ???????? "???#####+## # #??# #? ???? # | | ?????????????????# ## # #??# #????????? | | ?????????????????# ## g# """" #??# #????????? | | ?????????????????# ## / """ #??# #????????? | | ?????????????????# ## # """"[#??# #????????? | | ?????????????????# ## # #??# #????????? | | ?????????????######## #####+##### #????????? | | ?????????????# """ # #????????? | | ?????????????# """ # #????????? | | ?????????????# """ # #????????? | | ?????????????# + ####T#####+####????????? | | ?????????????# # w#??###??# ??????????? | | ?????????????# # #???????# """ ????????? | | ?????????????######## ##??????# """ #???????? | | ???????????????????# ######## """ #???????? | | ???????????????????# T # #???????? | | ???????????????????# "" < # #???????? | | ???????????????????# #######????????? | | ???????????????????# ###+######????????????? | | ??????????????????####+##### #????????????? | | ??????????????????# # #????????????? | | ??????????????????# """ # """ #????????????? | | ??????????????????# R" # """ #????????????? | +----------------------------------------------------+ Best States ------------- Heat Dissipation 41 Energy Generation 14 Energy Capacity 250 Matter Stores 300 Matter Capacity 300 Sight Range 16 Robot Scan Range 14 Terrain Scan Density 10 Armor Coverage 150 Evasion (%) 55 Targeting Accuracy 8 Recoil Reduction 1 Offensive Hacking 10 Item Schematics ----------------- None Robot Schematics ------------------ None Fabricated ------------ Nothing Alien Tech Used ----------------- None Achievements -------------- None Challenges ------------ None Game ------ Seed PrecisionNeutronAutobeam Manual? 0 Play Time 00:30:09 Cumulative 20.8 hours Start 2024.08.12 @ 01:22:40 End 2024.08.12 @ 01:59:18 Sessions 1 Manual Loads 0 Difficulty Rogue Special Mode None Game No. 26 Rogue 26 Adventurer 0 Explorer 0 Win Type - Total 0 Types 0/0/0/0/0/0/0/0/0 Lore% 13 Gallery% 24 Achievement% 27 Wizard Run 0 Options --------- Layout 0 ASCII 0 Keyboard 0 Movement Mouse Keybinds 0 Fullscreen 2 Font 24/Terminus Map View 76x50 Zoom Use 0% Tactical HUD 1 Map Filters NONE Filters NONE Steam 1 RUN: ed38098d-aecd-4ed4-a010-56b373b347c8